[Event "3rd Caraca Open 2022"]
[Site "Catas Altas"]
[Date "2022.07.10"]
[Round "6.3"]
[White "Gomes, Luiz Alexandre de So"]
[Black "Campos, Igor Ribeiro"]
[Result "1/2-1/2"]
[ECO "C00"]
[WhiteElo "2335"]
[BlackElo "2197"]
[Annotator "RC"]
[PlyCount "20"]
[EventDate "2022.06.28"]
[EventCountry "BRA"]
[SourceTitle "playchess.com"]
[Source "ChessBase"]
[SourceQuality "1"]
[TimeControl "900+5"]

1. e4 {[%emt 0:00:05]} e6 {[%emt 0:00:04]} 2. d3 {[%emt 0:00:01]} d5 {[%emt 0:00:02]} 3. Nd2 {[%emt 0:00:02]} Nf6 {[%emt 0:00:02]} 4. Ngf3 {[%emt 0:00:03]} Be7 {[%emt 0:00:12]} 5. g3 {[%emt 0:00:02]} c5 {[%emt 0:00:01]} 6. Bg2 {[%emt 0:00:03]} Nc6 {[%emt 0:00:04]} 7. O-O {[%emt 0:00:04]} O-O {[%emt 0:00:07]} 8. c3 {[%emt 0:00:02]} b6 {[%emt 0:00:32]} 9. Qc2 {[%emt 0:00:07]} Ba6 {[%emt 0:00:14]} 10. Re1 {[%emt 0:01:36]} Qc7 {[%emt 0:00:52]} 1/2-1/2

[Event "3rd Caraca Open 2022"]
[Site "Catas Altas"]
[Date "2022.07.10"]
[Round "6.4"]
[White "Casalaspro, Mathias Andre"]
[Black "Languidey, Simon Alejandro"]
[Result "0-1"]
[ECO "C11"]
[WhiteElo "1749"]
[BlackElo "2424"]
[Annotator "RC"]
[PlyCount "106"]
[EventDate "2022.06.28"]
[EventCountry "BRA"]
[SourceTitle "playchess.com"]
[Source "ChessBase"]
[SourceQuality "1"]
[TimeControl "900+5"]

1. e4 {[%emt 0:00:03]} e6 {[%emt 0:00:04]} 2. d4 {[%emt 0:00:04]} d5 {[%emt 0:00:02]} 3. Nc3 {[%emt 0:00:03]} Nf6 {[%emt 0:00:07]} 4. e5 {[%emt 0:00:01]} Nfd7 {[%emt 0:00:04]} 5. f4 {[%emt 0:00:01]} c5 {[%emt 0:00:08]} 6. Nf3 {[%emt 0:00:02]} Nc6 {[%emt 0:00:07]} 7. Be3 {[%emt 0:00:01]} a6 {[%emt 0:00:35]} 8. dxc5 {[%emt 0:01:25]} Bxc5 {[%emt 0:00:14]} 9. Bxc5 {[%emt 0:00:33]} Nxc5 {[%emt 0:00:06]} 10. Qd2 {[%emt 0:00:35]} b5 {[%emt 0:00:22]} 11. b4 {[%emt 0:01:55]} Nd7 {[%emt 0:01:10]} 12. a3 {[%emt 0:00:40]} Bb7 {[%emt 0:00:20]} 13. Bd3 {[%emt 0:00:26]} Qb6 {[%emt 0:01:58]} 14. Qf2 {[%emt 0:01:17]} Rc8 {[%emt 0:00:16]} 15. Ne2 {[%emt 0:01:29]} Qxf2+ {[%emt 0:01:33]} 16. Kxf2 {[%emt 0:00:01]} Nb6 {[%emt 0:00:10]} 17. c3 {[%emt 0:00:17]} Ke7 {[%emt 0:00:54]} 18. Nfd4 {[%emt 0:01:30]} Rc7 {[%emt 0:00:34]} 19. Nb3 {[%emt 0:03:30]} Nb8 {[%emt 0:00:24]} 20. Na5 {[%emt 0:00:37]} Rhc8 {[%emt 0:00:33]} 21. Rhc1 {[%emt 0:00:35]} N8d7 {[%emt 0:00:58]} 22. Ke3 {[%emt 0:00:47]} Ba8 {[%emt 0:02:32]} 23. Kd2 {[%emt 0:00:14]} Nc4+ {[%emt 0:00:30]} 24. Bxc4 {[%emt 0:00:47]} dxc4 {[%emt 0:03:24]} 25. g3 Nb6 {[%emt 0:00:00]} 26. Rd1 {[%emt 0:00:07]} Bf3 {[%emt 0:00:00]} 27. Ke3 {[%emt 0:00:10]} Bg4 {[%emt 0:00:00]} 28. Rac1 {[%emt 0:00:09]} f6 {[%emt 0:00:00]} 29. exf6+ {[%emt 0:00:02]} gxf6 {[%emt 0:00:00]} 30. Rd2 {[%emt 0:00:06]} Bxe2 {[%emt 0:00:00]} 31. Kxe2 {[%emt 0:00:02]} Nd5 {[%emt 0:00:00]} 32. f5 {[%emt 0:00:01]} Rd8 {[%emt 0:00:08]} 33. fxe6 {[%emt 0:00:04]} Rd6 {[%emt 0:00:06]} 34. Kf3 {[%emt 0:00:07]} Nb6 {[%emt 0:00:25]} 35. Rxd6 {[%emt 0:00:02]} Kxd6 {[%emt 0:00:01]} 36. Rd1+ {[%emt 0:00:11]} Kxe6 {[%emt 0:00:04]} 37. Ke4 {[%emt 0:00:00]} f5+ {[%emt 0:00:03]} 38. Kf3 {[%emt 0:00:05]} Nd5 {[%emt 0:00:03]} 39. Re1+ {[%emt 0:00:03]} Kd6 {[%emt 0:00:02]} 40. Rd1 {[%emt 0:00:01]} Ke5 {[%emt 0:00:15]} 41. Re1+ {[%emt 0:00:02]} Kf6 {[%emt 0:00:02]} 42. Rc1 {[%emt 0:00:01]} h5 {[%emt 0:00:10]} 43. h4 {[%emt 0:00:04]} Re7 {[%emt 0:00:05]} 44. Nc6 {[%emt 0:00:16]} Re3+ {[%emt 0:00:03]} 45. Kf2 {[%emt 0:00:01]} Rxc3 {[%emt 0:00:02]} 46. Rd1 {[%emt 0:00:01]} Ne3 {[%emt 0:00:11]} 47. Rd6+ {[%emt 0:00:02]} Kf7 {[%emt 0:00:03]} 48. Ne5+ {[%emt 0:00:02]} Ke7 {[%emt 0:00:01]} 49. Rxa6 {[%emt 0:00:02]} Rb3 {[%emt 0:00:13]} 50. Nc6+ {[%emt 0:00:05]} Kd7 {[%emt 0:00:03]} 51. Nd4 {[%emt 0:00:01]} Ng4+ {[%emt 0:00:02]} 52. Kg2 {[%emt 0:00:02]} Rb2+ {[%emt 0:00:02]} 53. Kf3 {[%emt 0:00:03]} Rf2# {[%emt 0:00:21]} 0-1

[Event "3rd Caraca Open 2022"]
[Site "Catas Altas"]
[Date "2022.07.10"]
[Round "7.1"]
[White "Languidey, Simon Alejandro"]
[Black "Mareco, Sandro"]
[Result "1/2-1/2"]
[ECO "C54"]
[WhiteElo "2424"]
[BlackElo "2657"]
[Annotator "TA"]
[PlyCount "29"]
[EventDate "2022.06.28"]
[EventCountry "BRA"]
[SourceTitle "playchess.com"]
[Source "ChessBase"]
[SourceQuality "1"]
[TimeControl "900+5"]

{[%evp 26,29,0,0,187,-42]} 1. e4 {[%emt 0:00:02]} e5 {[%emt 0:00:01]} 2. Nf3 {[%emt 0:00:06]} Nc6 {[%emt 0:00:01]} 3. Bc4 {[%emt 0:00:09]} Bc5 {[%emt 0:00:02]} 4. c3 {[%emt 0:00:12]} Nf6 {[%emt 0:00:02]} 5. d4 {[%emt 0:00:18]} exd4 {[%emt 0:00:09]} 6. cxd4 {[%emt 0:00:03]} Bb4+ {[%emt 0:00:11]} 7. Bd2 {[%emt 0:00:05]} Bxd2+ {[%emt 0:00:51]} 8. Nbxd2 {[%emt 0:00:03]} d5 {[%emt 0:00:02]} 9. exd5 {[%emt 0:00:10]} Nxd5 {[%emt 0:00:01]} 10. Qb3 {[%emt 0:00:40] [#]} Na5 $146 {[%emt 0:00:41]} ({Predecessor:} 10... Nce7 11. O-O O-O 12. Rfe1 c6 13. Ne4 Nb6 14. Bf1 h6 15. Nc5 Qc7 16. Ne5 Nbd5 17. Rad1 b6 18. Ne4 Be6 19. a3 Rad8 20. Qc2 Rfe8 21. h3 {½-½ (59) Aronian,L (2782)-Mamedyarov,S (2782) chess24.com INT 2021}) 11. Qa4+ {[%emt 0:00:08]} Nc6 {[%emt 0:00:01]} 12. Qb3 {[%emt 0:00:05]} Na5 {[%emt 0:03:30]} 13. Qa4+ {[%emt 0:00:04]} Nc6 {[%emt 0:00:01]} 14. Qb3 {[%emt 0:00:02]} Nf6 {[%emt 0:10:42] [#] C54: Giuoco Piano: 4 c3 Nf6, main lines with 5 d4 and 5 d3.} (14... Na5 $11 {and Black is okay.} 15. Qa4+) 15. Nb1 $2 {[%emt 0:14:13]} (15. Bxf7+ $18 Kf8 16. Bc4) 1/2-1/2

[Event "3rd Caraca Open 2022"]
[Site "Catas Altas"]
[Date "2022.07.10"]
[Round "7.2"]
[White "Supi, Luis Paulo"]
[Black "Gazel, Frederico"]
[Result "1-0"]
[ECO "C54"]
[WhiteElo "2603"]
[BlackElo "2300"]
[Annotator "TA"]
[PlyCount "160"]
[EventDate "2022.06.28"]
[EventCountry "BRA"]
[SourceTitle "playchess.com"]
[Source "ChessBase"]
[SourceQuality "1"]
[TimeControl "900+5"]

{[%evp 13,160,16,30,22,33,32,35,34,51,45,59,50,52,55,125,0,0,0,0,0,0,0,15,18,25,25,54,50,90,84,101,94,87,82,123,122,103,82,99,106,123,120,136,136,116,80,76,60,98,63,100,100,101,63,62,53,54,23,47,0,14,8,45,45,53,38,45,46,46,0,44,0,49,45,70,45,49,32,50,39,40,0,51,0,54,0,56,0,0,0,0,0,0,0,0,0,0,0,27,27,247,0,0,0,219,229,253,0,0,0,0,0,0,0,0,0,897,0,0,0,0,0,0,0,0,0,0,0,0,0,0,0,0,0,155,159,121,162,6596,6095,6095,6575,6333,6270,5377,4133,7108,4947,2201]} 1. e4 {[%emt 0:00:05]} e5 {[%emt 0:00:05]} 2. Nf3 {[%emt 0:00:00]} Nc6 {[%emt 0:00:01]} 3. Bc4 {[%emt 0:00:01]} Bc5 {[%emt 0:00:04]} 4. d3 {[%emt 0:00:37]} Nf6 {[%emt 0:00:08]} 5. Bg5 {[%emt 0:00:04]} d6 {[%emt 0:00:20]} 6. c3 {[%emt 0:00:03]} h6 {[%emt 0:00:09]} 7. Bh4 {[%emt 0:00:02]} a6 {[%emt 0:00:55]} 8. Nbd2 {[%emt 0:00:07] C54: Giuoco Piano: 4 c3 Nf6, main lines with 5 d4 and 5 d3.} O-O {[%emt 0:00:35]} 9. a4 {[%emt 0:00:15]} a5 {[%emt 0:00:51]} 10. O-O {[%emt 0:00:06] White is slightly better.} Qe7 {[%emt 0:00:01] [#]} 11. Re1 $146 {[%emt 0:00:18]} ({Predecessor:} 11. h3 Bd7 12. Qc2 Rac8 13. Bd5 Ra8 14. Rfe1 Rfd8 15. Rad1 g5 16. Bg3 Re8 17. Bh2 {1-0 (48) Lipsits,S (1785)-Faust,D (1662) FICGS email 2014}) 11... Be6 {[%emt 0:00:13]} 12. Bb5 {[%emt 0:00:04]} g5 {[%emt 0:01:15]} 13. Bg3 {[%emt 0:00:12]} Nh5 {[%emt 0:02:15] [#]} (13... Rfd8 $14) 14. Nf1 {[%emt 0:00:13]} (14. Nxe5 $1 $16 {[%mdl 512]} Nxe5 15. Qxh5) 14... Nxg3 $11 {[%emt 0:00:23]} 15. hxg3 {[%emt 0:00:17]} Qf6 {[%emt 0:00:15]} 16. Ne3 {[%emt 0:00:32]} Ne7 {[%emt 0:00:08]} 17. d4 {[%emt 0:00:15]} Ba7 {[%emt 0:00:02]} 18. g4 {[%emt 0:00:23]} c6 {[%emt 0:00:23] Threatens to win with ...exd4.} 19. Bc4 {[%emt 0:00:19]} Rfd8 {[%emt 0:00:08]} 20. Bxe6 {[%emt 0:01:43]} Qxe6 {[%emt 0:00:05]} 21. Nf5 {[%emt 0:00:10]} Qf6 {[%emt 0:02:27]} 22. dxe5 {[%emt 0:00:27] White is more active.} dxe5 {[%emt 0:00:04]} 23. Qe2 {[%emt 0:00:02]} Rd7 {[%emt 0:00:21]} 24. Rad1 {[%emt 0:00:47]} ({Wrong is} 24. Nxe5 $2 Qxe5 25. Rad1 Rxd1 26. Qxd1 Nxf5 27. exf5 Qf4 $19) 24... Rad8 {[%emt 0:00:02]} 25. Rd2 {[%emt 0:00:33]} Kh7 {[%emt 0:01:02]} 26. g3 {[%emt 0:00:38]} Qe6 {[%emt 0:00:17]} 27. Rxd7 {[%emt 0:00:42]} Rxd7 {[%emt 0:00:01]} 28. Kg2 {[%emt 0:00:02] Rh1 is the strong threat.} f6 {[%emt 0:00:05]} 29. Rd1 {[%emt 0:02:15]} Bb6 {[%emt 0:01:02]} 30. Rd2 {[%emt 0:00:28]} Bc5 {[%emt 0:00:59]} 31. Kf1 {[%emt 0:02:28]} Rxd2 {[%emt 0:00:09]} 32. Nxd2 {[%emt 0:00:05]} Nxf5 {[%emt 0:00:17]} 33. exf5 $14 {[%emt 0:00:08][%mdl 4096] Endgame KQB-KQN} Qd5 {[%emt 0:00:12][%cal Rd5h1]} 34. Ne4 {[%emt 0:00:01]} Be7 {[%emt 0:00:01]} 35. Kg2 {[%emt 0:01:44]} Kg7 {[%emt 0:00:02]} 36. f3 {[%emt 0:00:18]} (36. c4 $14 Qd4 37. b3) 36... Kf7 {[%emt 0:00:05]} 37. Qc2 {[%emt 0:00:51]} Bf8 {[%emt 0:00:11]} 38. Kf2 {[%emt 0:00:13]} Be7 {[%emt 0:00:03]} 39. b3 {[%emt 0:00:07]} Bf8 {[%emt 0:00:28]} 40. Ke2 {[%emt 0:00:01]} Be7 {[%emt 0:00:02]} 41. Kf2 {[%emt 0:00:01]} Bf8 {[%emt 0:00:01]} 42. Ke2 {[%emt 0:00:01]} Be7 $1 {[%emt 0:00:00]} 43. Qb1 {[%emt 0:00:03]} Bf8 {[%emt 0:00:03]} 44. Kf2 {[%emt 0:00:38]} Be7 {[%emt 0:00:01]} 45. Kg2 {[%emt 0:00:01]} Bf8 {[%emt 0:00:00]} 46. Qc2 {[%emt 0:00:14]} Be7 {[%emt 0:00:02]} 47. Qb1 {[%emt 0:00:01]} Bf8 {[%emt 0:00:00]} 48. Kf2 {[%emt 0:00:01]} Be7 $1 {[%emt 0:00:01]} 49. Kg2 {[%emt 0:00:01]} Bf8 $1 {[%emt 0:00:01]} 50. b4 {[%emt 0:00:23]} ({White should play} 50. Kf1 $14) 50... axb4 $11 {[%emt 0:00:09]} 51. cxb4 {[%emt 0:00:01]} Qc4 {[%emt 0:00:01]} 52. Qd1 {[%emt 0:00:14] Intending Qd7+ and mate.} Be7 {[%emt 0:00:55]} 53. Qd7 {[%emt 0:00:08] White threatens Nd6+ and mate.} Qxb4 {[%emt 0:00:36]} 54. Qe6+ {[%emt 0:00:01]} Kg7 {[%emt 0:00:06]} 55. a5 {[%emt 0:00:03]} Qa3 {[%emt 0:00:11]} 56. Qd7 {[%emt 0:00:02][%mdl 1024] White has compensation.} Qb4 {[%emt 0:00:09]} (56... Kf7 $11) 57. Kh3 $2 {[%emt 0:00:01]} ({White has to play} 57. Qe8 $18) 57... Kf8 {[%emt 0:00:05]} 58. Qc8+ {[%emt 0:00:05]} Kg7 $2 {[%emt 0:00:02]} (58... Kf7 $1 $11) 59. Qe8 $18 {[%emt 0:00:03]} Qa3 {[%emt 0:00:13] [#]} 60. Kg2 $2 {[%emt 0:00:07]} ({White should try} 60. a6 $1 $18 {[%cal Ra6b7]} bxa6 61. Qg6+ Kf8 62. Nxf6 (62. Qxh6+ Ke8 $11) 62... Bxf6 63. Qxf6+ Ke8 64. Qxc6+ (64. Qxe5+ Kd7 $11) 64... Ke7 65. Qxh6) 60... Qa2+ $11 {[%emt 0:00:22]} 61. Kh3 {[%emt 0:00:01]} Qf7 {[%emt 0:00:05]} 62. Qb8 {[%emt 0:00:02]} Bf8 {[%emt 0:00:12]} 63. Qc8 {[%emt 0:00:02]} h5 {[%emt 0:00:05]} 64. gxh5 {[%emt 0:00:13]} Qxh5+ {[%emt 0:00:59]} 65. Kg2 Qf7 {[%emt 0:00:00]} 66. g4 {[%emt 0:00:09]} Bb4 {[%emt 0:00:00]} 67. Kh3 {[%emt 0:00:13]} Bf8 {[%emt 0:00:00]} 68. Qb8 {[%emt 0:00:01]} Qe7 {[%emt 0:00:00]} 69. Qc8 {[%emt 0:00:06]} Qf7 {[%emt 0:00:00]} 70. Qd8 {[%emt 0:00:01]} Be7 {[%emt 0:00:00]} 71. Qc7 {[%emt 0:00:06]} Bf8 {[%emt 0:00:00]} 72. Qb8 {[%emt 0:00:08]} Qe7 {[%emt 0:00:00]} 73. Ng3 {[%emt 0:00:23]} Qd7 $2 {[%emt 0:00:01]} (73... c5 $11) 74. Nh5+ $16 {[%emt 0:00:00]} Kf7 {[%emt 0:00:01]} 75. Nxf6 $1 {[%emt 0:00:00][%mdl 64] Deflection, Decoy} Kxf6 $2 {[%emt 0:00:38]} (75... Qd6 76. Qxd6 Bxd6) 76. Qxf8+ {[%emt 0:00:00] KQ-KQ. White is clearly winning.} Qf7 {[%emt 0:00:04]} 77. Qd6+ {[%emt 0:00:02]} Kg7 {[%emt 0:00:01]} 78. Qxe5+ {[%emt 0:00:01]} Kh7 {[%emt 0:00:14]} 79. Kg3 {[%emt 0:00:02]} Qb3 {[%emt 0:00:03]} 80. Qf6 {[%emt 0:00:18] Threatening mate with Qg6+.} Qg8 {[%emt 0:00:00] Prevents Qg6+.  Weighted Error Value: White=0.26 (precise) /Black=0.24 (precise)} 1-0

[Event "3rd Caraca Open 2022"]
[Site "Catas Altas"]
[Date "2022.07.10"]
[Round "7.3"]
[White "Goncalves, Andre Luiz Sampaio"]
[Black "Diamant, Andre"]
[Result "0-1"]
[ECO "A47"]
[WhiteElo "1929"]
[BlackElo "2538"]
[Annotator "TA"]
[PlyCount "66"]
[EventDate "2022.06.28"]
[EventCountry "BRA"]
[SourceTitle "playchess.com"]
[Source "ChessBase"]
[SourceQuality "1"]
[TimeControl "900+5"]

{[%evp 9,66,0,36,12,12,16,16,0,14,0,12,-6,24,-83,-47,-60,0,0,0,-36,0,0,54,-6,-19,-11,14,0,0,8,16,0,112,104,237,66,66,-24,-29,-122,-122,-130,-115,-64,0,-62,-56,-93,-85,-163,-157,-168,-165,-162,-161,-162,-172,-891,-870]} 1. d4 {[%emt 0:00:03]} Nf6 {[%emt 0:00:01]} 2. Nf3 {[%emt 0:00:04]} e6 {[%emt 0:00:01]} 3. e3 {[%emt 0:00:05]} b6 {[%emt 0:00:08]} 4. Bd3 {[%emt 0:00:05]} Bb7 {[%emt 0:00:02]} 5. Nbd2 {[%emt 0:00:04]} g6 {[%emt 0:00:30]} 6. Qe2 {[%emt 0:00:08] A47: 1 d4 Nf6 2 Nf3 b6: Torre, London and Colle Systems.} Bg7 {[%emt 0:00:02]} 7. O-O {[%emt 0:00:18]} O-O {[%emt 0:00:02]} 8. c3 {[%emt 0:00:29] The position is equal.} d6 {[%emt 0:00:08] [#]} 9. h3 $146 {[%emt 0:00:13]} ({Predecessor:} 9. e4 Nbd7 10. e5 dxe5 11. dxe5 Ng4 12. h3 Ngxe5 13. Nxe5 Nxe5 14. Bc2 Qf6 15. Be4 Bxe4 16. Nxe4 {0-1 (38) Anders,H-Antz,W freechess.de 2016}) 9... Re8 {[%emt 0:00:27]} 10. e4 {[%emt 0:00:04]} e5 {[%emt 0:00:05]} 11. Bc2 {[%emt 0:00:45]} (11. dxe5 $11 dxe5 12. Nc4) 11... Nbd7 {[%emt 0:00:51][%cal Bb8d7,Bd7c5,Bc5e6][%mdl 32]} 12. dxe5 {[%emt 0:00:17]} dxe5 {[%emt 0:00:13]} (12... Nxe5 $15 13. Nxe5 Rxe5) 13. Rd1 {[%emt 0:00:14]} Qe7 {[%emt 0:00:07]} 14. Nf1 {[%emt 0:00:41]} Nh5 {[%emt 0:00:12]} 15. Bg5 {[%emt 0:00:19]} f6 {[%emt 0:01:30]} (15... Ndf6 $11) 16. Bh4 {[%emt 0:00:47]} (16. Qc4+ $14 Kh8 17. Be3 (17. Qxc7 Nc5 $11)) 16... Nc5 $11 {[%emt 0:00:18]} 17. b4 {[%emt 0:01:15]} Ne6 {[%emt 0:00:42]} 18. Ne3 {[%emt 0:00:15]} Nhf4 {[%emt 0:00:16]} 19. Qc4 {[%emt 0:00:30] [#] And now Nxe5 would win.} Qf7 {[%emt 0:01:05]} 20. Bb3 {[%emt 0:00:20]} c6 {[%emt 0:01:13] Inhibits Nd5.} (20... g5 $11 {remains equal.} 21. Bg3 b5 22. Qxb5 Bxe4) 21. Bg3 $16 {[%emt 0:00:44] aiming for Bxf4.} Bf8 {[%emt 0:01:56]} (21... Kh8 $16 {was worth a try.}) 22. Rd2 $2 {[%emt 0:01:29]} (22. Bxf4 $18 exf4 23. Ng4) 22... a5 $14 {[%emt 0:02:03][%cal Ba7a5,Ba5a4][%mdl 32]} 23. Rad1 {[%emt 0:00:26]} ({White should play} 23. bxa5 $14 b5 24. Qf1) 23... a4 $11 {[%emt 0:01:10] [#] White must now prevent ...b5.} 24. Rd7 {[%emt 0:02:37]} (24. Bc2 $1 $11) 24... Re7 $17 {[%emt 0:00:17]} 25. Rxe7 {[%emt 0:00:51]} Qxe7 {[%emt 0:00:01]} 26. Bc2 {[%emt 0:00:27]} Kg7 {[%emt 0:00:58]} ({Better is} 26... Qe8 $15 27. Ng4 Nh5) 27. Qf1 {[%emt 0:00:45]} (27. b5 $11) 27... Ba6 $36 {[%emt 0:00:12][%mdl 2048] Black is more active.} 28. Qe1 {[%emt 0:00:25]} Be2 {[%emt 0:00:19]} 29. Rd2 {[%emt 0:00:29]} (29. Nh4 $17 {is a better defense.} Bxd1 30. Nhf5+ gxf5 31. Nxf5+ Kh8 32. Nxe7 Bxc2 33. Bxf4 Nxf4 34. Nf5) 29... Bxf3 $19 {[%emt 0:00:03]} 30. gxf3 {[%emt 0:00:02]} Nxh3+ {[%emt 0:00:11] Pair of Knights!} 31. Kf1 {[%emt 0:00:33]} b5 {[%emt 0:00:31]} 32. Qd1 {[%emt 0:00:48] Strongly threatening Rd7.} Ra7 {[%emt 0:00:09] Against Rd7} 33. Rd6 $2 {[%emt 0:00:29]} (33. a3) 33... Qxd6 {[%emt 0:00:03] What a bad dream for White.  Weighted Error Value: White=0.61/Black=0.25 (precise)} 0-1

[Event "3rd Caraca Open 2022"]
[Site "Catas Altas"]
[Date "2022.07.10"]
[Round "7.5"]
[White "Monteiro, Daniel Zotelli"]
[Black "Gomes, Luiz Alexandre de So"]
[Result "0-1"]
[ECO "B95"]
[WhiteElo "1642"]
[BlackElo "2335"]
[Annotator "RC"]
[PlyCount "75"]
[EventDate "2022.06.28"]
[EventCountry "BRA"]
[SourceTitle "playchess.com"]
[Source "ChessBase"]
[SourceQuality "1"]
[TimeControl "900+5"]

1. e4 {[%emt 0:00:08]} c5 {[%emt 0:00:05]} 2. Nf3 {[%emt 0:00:02]} d6 {[%emt 0:00:01]} 3. d4 {[%emt 0:00:02]} cxd4 {[%emt 0:00:02]} 4. Nxd4 {[%emt 0:00:01]} Nf6 {[%emt 0:00:01]} 5. Nc3 {[%emt 0:00:02]} a6 {[%emt 0:00:01]} 6. Bg5 {[%emt 0:00:18]} e6 {[%emt 0:00:02]} 7. Qd2 {[%emt 0:00:42]} Be7 {[%emt 0:00:03]} 8. Be2 {[%emt 0:00:15]} Qc7 {[%emt 0:00:03]} 9. O-O {[%emt 0:00:22]} Nbd7 {[%emt 0:00:02]} 10. f4 {[%emt 0:00:52]} b5 {[%emt 0:00:12]} 11. Bf3 {[%emt 0:00:26]} Bb7 {[%emt 0:00:03]} 12. Rfe1 {[%emt 0:00:27]} Nb6 {[%emt 0:03:28]} 13. e5 {[%emt 0:02:19]} dxe5 {[%emt 0:00:53]} 14. fxe5 {[%emt 0:00:04]} Nfd5 {[%emt 0:00:08]} 15. Nxd5 {[%emt 0:00:41]} Nxd5 {[%emt 0:00:10]} 16. Bxd5 {[%emt 0:00:52]} Bxd5 {[%emt 0:00:09]} 17. Bxe7 {[%emt 0:00:34]} Qxe7 {[%emt 0:00:01]} 18. c3 {[%emt 0:00:11]} O-O {[%emt 0:00:07]} 19. a3 {[%emt 0:00:17]} Rfd8 {[%emt 0:00:15]} 20. Qf4 {[%emt 0:00:30]} Rac8 {[%emt 0:00:09]} 21. Qg3 {[%emt 0:00:27]} Qb7 {[%emt 0:00:46]} 22. Re2 {[%emt 0:00:29]} a5 {[%emt 0:00:10]} 23. Rf2 {[%emt 0:00:43]} b4 {[%emt 0:00:12]} 24. axb4 {[%emt 0:00:48]} axb4 {[%emt 0:00:02]} 25. Rc1 {[%emt 0:01:12]} Be4 {[%emt 0:00:39]} 26. Rcf1 {[%emt 0:00:43]} Rd7 {[%emt 0:01:24]} 27. Rf4 {[%emt 0:00:53]} bxc3 {[%emt 0:00:17]} 28. bxc3 {[%emt 0:00:15]} Qd5 {[%emt 0:01:05]} 29. Qe3 {[%emt 0:00:44]} Bg6 {[%emt 0:00:11]} 30. Ne2 {[%emt 0:00:56]} h6 {[%emt 0:02:32]} 31. Rd4 {[%emt 0:00:02]} Qc5 {[%emt 0:00:07]} 32. Rf3 {[%emt 0:00:37]} Rdc7 {[%emt 0:00:28]} 33. h4 {[%emt 0:00:32]} Qa5 {[%emt 0:01:30]} 34. Kh2 {[%emt 0:00:17]} Rc5 {[%emt 0:00:03]} 35. Kg1 {[%emt 0:00:17]} R5c7 {[%emt 0:02:39]} 36. g4 {[%emt 0:00:05]} Rc5 {[%emt 0:00:05]} 37. h5 {[%emt 0:00:05]} Rxe5 38. Qd2 {[%emt 0:00:05]} 0-1